{"text_format":"1","workbook":"xlsx","n_sheets":6,"sheets":["List of Inputs","Summary - Active","Libor","Mayne Pharma","AMP","Boral"],"not_rendered":{"charts":0,"images":0,"macros":1,"external_links":0,"defined_names":4,"comments":0,"pivot_tables":0},"unopened":[],"bounds":{"document_bytes":16777216,"sheet_cells":100000,"rows_first":2000,"rows_last":500,"rows_between":2000,"halvings":0,"cell_chars":16384,"cell_head_chars":4096},"cells_cut":0,"cells_raw":0,"read":"whole","date_system":"1900"}

{"sheet":"List of Inputs","index":0,"n_rows":13,"n_cols":9,"rows_kept":13,"cut":false,"hidden":false,"merged":[]}
["Fund Name","Custodian","Relationship Manager","Eligible","Participating ","Deadline","Law Firm","Status","Comments"]
["123 Investment and Growth Fund","SSAL","Alan","Yes","Yes",null,"Maurice Blackburn","Open"]
["188 Bond Trust","BNP","Alex","No","No",null,"PHIFINNEYMCDONALD","Closed"]
["188 Cash Account","Citi","Ben"]
[null,"JPM","Lisa"]
[null,"Link","Darren"]
[null,"Mainstream","Kylie"]
[null,"NAB","Bec"]
[null,"Northern Trust","Rebecca"]
[null,"RBC","Rob"]
[null,null,"Russ"]
[null,null,"Sten"]
[null,null,"Jo"]

{"sheet":"Summary - Active","index":1,"n_rows":14,"n_cols":7,"rows_kept":14,"cut":false,"hidden":false,"merged":[]}
[{"$f":"'List of Inputs'!A1","v":"Fund Name"},"Class Action",{"$f":"'List of Inputs'!B1","v":"Custodian"},{"$f":"'List of Inputs'!C1","v":"Relationship Manager"},{"$f":"'List of Inputs'!F1","v":"Deadline"},{"$f":"'List of Inputs'!G1","v":"Law Firm"},{"$f":"'List of Inputs'!I1","v":"Comments"}]
["AG Australia Equity Fund",{"$f":"B1","v":"Class Action"},"Citi","Russ","2020-07-31","PHIFINNEYMCDONALD","Waiting for loss estimate to decide"]
["Army Income Fund",{"$f":"B2","v":"Class Action"},"Mainstream","Alex","2020-07-31","PHIFINNEYMCDONALD","Participating- paperwork lodged"]
["Army Strat Fund",{"$f":"B3","v":"Class Action"},"Mainstream","Alex","2020-07-31","PHIFINNEYMCDONALD","Participating- paperwork lodged"]
["COMMON FUND 102",{"$f":"B4","v":"Class Action"},"SSAL","Rob","2020-07-31","PHIFINNEYMCDONALD","Yet to elect to participate"]
["E FLAGSHIP FUND",{"$f":"B5","v":"Class Action"},"SSAL","Rob","2020-07-31","PHIFINNEYMCDONALD","Yet to elect to participate"]
["E TAX AWARE AU EQUITY FUND",{"$f":"B6","v":"Class Action"},"SSAL","Rob","2020-07-31","PHIFINNEYMCDONALD","Yet to elect to participate"]
["E W FLAGSHIP FUND",{"$f":"B7","v":"Class Action"},"SSAL","Rob","2020-07-31","PHIFINNEYMCDONALD","Yet to elect to participate"]
["Flinders","Mayne Pharma","RBC","Ben","2020-08-07","PHIFINNEYMCDONALD","Participating"]
["M A Absolute Growth Fund ","Boral","NAB","Lisa","2020-07-31","PHIFINNEYMCDONALD","Choose not to Participate"]
["PORT PLUS INDUST EQUITIES FUND",{"$f":"B10","v":"Boral"},"SSAL","Rob","2020-07-31","PHIFINNEYMCDONALD","Yet to elect to participate"]
["THE QUEENSLAND COMMON FUND",{"$f":"B11","v":"Boral"},"SSAL","Rob","2020-07-31","PHIFINNEYMCDONALD","Yet to elect to participate"]
["Tribeca Alpha Plus Fund","AMP",null,"Lisa","N/A","Maurice Blackburn","Retainer Paperwork Submitted - IM taking care of the rest"]
["W ABSOLUTE RETURN FUND","Boral","Link","Bec","2020-07-31","PHIFINNEYMCDONALD","Choose not to Participate"]

{"sheet":"Libor","index":2,"n_rows":1,"n_cols":10,"rows_kept":1,"cut":false,"hidden":false,"merged":[]}
["Class Action",{"$f":"'List of Inputs'!A1","v":"Fund Name"},{"$f":"'List of Inputs'!B1","v":"Custodian"},{"$f":"'List of Inputs'!C1","v":"Relationship Manager"},{"$f":"'List of Inputs'!D1","v":"Eligible"},{"$f":"'List of Inputs'!E1","v":"Participating "},{"$f":"'List of Inputs'!F1","v":"Deadline"},{"$f":"'List of Inputs'!G1","v":"Law Firm"},{"$f":"'List of Inputs'!H1","v":"Status"},{"$f":"'List of Inputs'!I1","v":"Comments"}]

{"sheet":"Mayne Pharma","index":3,"n_rows":2,"n_cols":10,"rows_kept":2,"cut":false,"hidden":false,"merged":[]}
["Class Action",{"$f":"'List of Inputs'!A1","v":"Fund Name"},{"$f":"'List of Inputs'!B1","v":"Custodian"},{"$f":"'List of Inputs'!C1","v":"Relationship Manager"},{"$f":"'List of Inputs'!D1","v":"Eligible"},{"$f":"'List of Inputs'!E1","v":"Participating "},{"$f":"'List of Inputs'!F1","v":"Deadline"},{"$f":"'List of Inputs'!G1","v":"Law Firm"},{"$f":"'List of Inputs'!H1","v":"Status"},{"$f":"'List of Inputs'!I1","v":"Comments"}]
["Mayne Pharma","Flinders","RBC","Ben","Yes","Yes","2020-08-07","PHIFINNEYMCDONALD","Open","Participating"]

{"sheet":"AMP","index":4,"n_rows":2,"n_cols":10,"rows_kept":2,"cut":false,"hidden":false,"merged":[]}
["Class Action",{"$f":"'List of Inputs'!A1","v":"Fund Name"},{"$f":"'List of Inputs'!B1","v":"Custodian"},{"$f":"'List of Inputs'!C1","v":"Relationship Manager"},{"$f":"'List of Inputs'!D1","v":"Eligible"},{"$f":"'List of Inputs'!E1","v":"Participating "},{"$f":"'List of Inputs'!F1","v":"Deadline"},{"$f":"'List of Inputs'!G1","v":"Law Firm"},{"$f":"'List of Inputs'!H1","v":"Status"},{"$f":"'List of Inputs'!I1","v":"Comments"}]
["AMP","Tribeca Alpha Plus Fund",null,"Lisa","Yes","Yes","N/A","Maurice Blackburn","Open","Retainer Paperwork Submitted - IM taking care of the rest"]

{"sheet":"Boral","index":5,"n_rows":12,"n_cols":10,"rows_kept":12,"cut":false,"hidden":false,"merged":[]}
["Class Action",{"$f":"'List of Inputs'!A1","v":"Fund Name"},{"$f":"'List of Inputs'!B1","v":"Custodian"},{"$f":"'List of Inputs'!C1","v":"Relationship Manager"},{"$f":"'List of Inputs'!D1","v":"Eligible"},{"$f":"'List of Inputs'!E1","v":"Participating "},{"$f":"'List of Inputs'!F1","v":"Deadline"},{"$f":"'List of Inputs'!G1","v":"Law Firm"},{"$f":"'List of Inputs'!H1","v":"Status"},{"$f":"'List of Inputs'!I1","v":"Comments"}]
["Boral","W ABSOLUTE RETURN FUND","Link","Bec","Yes","No","2020-07-31","PHIFINNEYMCDONALD","Open","Choose not to Participate"]
["Boral","M A Absolute Growth Fund ","NAB","Lisa","Yes","No","2020-07-31","PHIFINNEYMCDONALD","Open","Choose not to Participate"]
[{"$f":"A3","v":"Boral"},"Army Income Fund","Mainstream","Alex","Yes","Yes","2020-07-31","PHIFINNEYMCDONALD","Open","Participating- paperwork lodged"]
[{"$f":"A4","v":"Boral"},"Army Strat Fund","Mainstream","Alex","Yes","Yes","2020-07-31","PHIFINNEYMCDONALD","Open","Participating- paperwork lodged"]
[{"$f":"A5","v":"Boral"},"AG Australia Equity Fund","Citi","Russ","Yes",null,"2020-07-31","PHIFINNEYMCDONALD","Open","Waiting for loss estimate to decide"]
[{"$f":"A6","v":"Boral"},"E TAX AWARE AU EQUITY FUND","SSAL","Rob","Yes","No","2020-07-31","PHIFINNEYMCDONALD","Open","Yet to elect to participate"]
["Boral","E FLAGSHIP FUND","SSAL","Rob","Yes","No","2020-07-31","PHIFINNEYMCDONALD","Open","Yet to elect to participate"]
["Boral","E W FLAGSHIP FUND","SSAL","Rob","Yes","No","2020-07-31","PHIFINNEYMCDONALD","Open","Yet to elect to participate"]
["Boral","THE QUEENSLAND COMMON FUND","SSAL","Rob","Yes","No","2020-07-31","PHIFINNEYMCDONALD","Open","Yet to elect to participate"]
["Boral","PORT PLUS INDUST EQUITIES FUND","SSAL","Rob","Yes","No","2020-07-31","PHIFINNEYMCDONALD","Open","Yet to elect to participate"]
["Boral","COMMON FUND 102","SSAL","Rob","Yes","No","2020-07-31","PHIFINNEYMCDONALD","Open","Yet to elect to participate"]